bitfinex-derivatives/quotes_BNBF0:USTF0_20250708
["timestamp","ask_amount","ask_price","bid_price","bid_amount"]
[1751975555219,1.6977277,661.38,660.75,0.26316386]
[1751975555220,1.6977277,661.38,660.79,1.6985768]
[1751975555924,1.6977277,661.37,660.81,1.6985768]
[1751975557528,1.6977277,661.37,660.82,1.6985768]
[1751975557930,1.6977277,661.37,660.81,1.6985768]
[1751975558530,1.6977277,661.38,660.82,1.6985768]
[1751975559332,1.6977277,661.38,660.83,1.6985768]
[1751975560332,1.6977277,661.37,660.83,1.6985768]
[1751975561037,0.98966554,661.52,660.75,0.26316386]
[1751975561232,1.6988428,661.37,660.83,1.697807]
[1751975562533,1.6988428,661.37,660.84,1.697807]
[1751975562833,1.6988428,661.44,660.77,0.26316486]
[1751975563036,1.6988428,661.45,660.77,0.26316486]
[1751975563538,1.6988428,661.44,660.77,0.26316486]
[1751975564338,1.6988428,661.54,660.85,1.697807]
[1751975564837,1.6988428,661.54,660.86,1.697807]
[1751975565938,1.6988428,661.54,660.87,1.697807]
[1751975566537,1.6988428,661.53,660.88,1.697807]
[1751975566841,1.6988428,661.51,660.91,1.697807]
[1751975568040,1.6988428,661.51,660.92,1.697807]
[1751975568441,1.6988428,661.51,660.91,1.697807]
[1751975569338,1.6988428,661.52,660.91,1.697807]
[1751975572440,1.6988428,661.52,660.77,0.26316486]
[1751975572441,1.6988428,661.52,660.9,1.697807]
[1751975572640,1.6988428,661.51,660.93,1.697807]
[1751975574441,1.6988428,661.49,660.96,1.697807]
[1751975575144,1.6988428,661.49,660.95,1.697807]
[1751975575742,1.6988428,661.49,660.77,0.26316486]
[1751975575743,1.6988428,661.49,660.96,1.697807]
[1751975576545,1.6988428,661.48,660.98,1.697807]
[1751975577544,1.6988428,661.49,660.96,1.697807]
[1751975578139,1.6988428,661.49,660.97,1.697807]
[1751975578344,1.6988428,661.49,660.96,1.697807]
[1751975582548,1.6988428,661.49,660.83,2.2680283]
[1751975582549,1.6988428,661.49,660.97,1.697807]
[1751975583749,1.6988428,661.52,660.92,1.697807]
[1751975584052,1.6988428,661.52,660.91,1.697807]
[1751975584252,1.6988428,661.53,660.91,1.697807]
[1751975584449,1.6988428,661.52,660.91,1.697807]
[1751975585250,1.6988428,661.53,660.91,1.697807]
[1751975586154,1.6988428,661.53,660.9,1.697807]
[1751975586654,1.6988428,661.54,660.9,1.697807]
[1751975587251,1.6988428,661.54,660.89,1.697807]
[1751975587452,1.6988428,661.54,660.9,1.697807]
[1751975592759,1.6988428,661.54,660.89,1.697807]
[1751975593358,1.6988428,661.53,660.91,1.697807]
[1751975593758,1.6988428,661.53,660.92,1.697807]
[1751975594356,1.6988428,661.52,660.92,1.697807]
[1751975595460,1.6988428,661.52,660.93,1.697807]
[1751975596056,1.6988428,661.51,660.94,1.697807]
[1751975596555,1.6988428,661.5,660.95,1.697807]
[1751975597958,1.6988428,661.51,660.94,1.697807]
[1751975599357,1.6988428,661.5,660.95,1.697807]
[1751975603761,1.6988428,661.5,660.96,1.697807]
[1751975604163,1.6988428,661.49,660.96,1.697807]
[1751975604467,1.6988428,661.5,660.96,1.697807]
[1751975604965,1.6988428,661.49,660.96,1.697807]
[1751975607866,1.6988428,661.48,660.97,1.697807]
[1751975609370,1.6988428,661.48,660.98,1.697807]
[1751975612270,0.26315491,661.77,660.98,1.697807]
[1751975612271,1.6988428,661.47,660.98,1.697807]
[1751975612472,1.6988428,661.47,660.99,1.697807]
[1751975612870,1.6988428,661.48,660.99,1.697807]
[1751975613276,1.6988428,661.47,660.99,1.697807]
[1751975614477,1.6988428,661.47,661.0,1.697807]
[1751975615073,1.6988428,661.47,661.0,1.6787363]
[1751975615573,1.6988428,661.46,661.0,1.6787363]
[1751975616979,1.6988428,661.46,660.87,2.2680283]
[1751975617376,1.6988428,661.46,660.88,2.2680283]
[1751975617882,1.6988428,661.46,660.87,2.2680283]
[1751975618379,1.6988428,661.46,660.88,2.2680283]
[1751975618882,1.6988428,661.46,660.87,2.2680283]
[1751975619182,1.6988428,661.46,660.88,2.2680283]
[1751975619382,1.6988428,661.45,660.88,2.2680283]
[1751975620382,1.6988428,661.45,660.89,2.2680283]
[1751975621288,1.6988428,661.44,660.9,2.2680283]
[1751975622284,1.6988428,661.43,660.91,2.2680283]
[1751975622486,1.6988428,661.43,660.79,3.4020425]
[1751975622487,1.6988428,661.43,660.9,2.2680283]
[1751975622988,1.6988428,661.43,660.91,2.2680283]
[1751975623390,1.6988428,661.42,660.92,2.2680283]
[1751975623591,1.6988428,661.43,660.91,2.2680283]
[1751975624388,1.6988428,661.41,660.93,2.2680283]
[1751975626196,1.6988428,661.4,660.94,2.2680283]
[1751975626692,1.6988428,661.41,660.93,2.2680283]
[1751975626892,1.6988428,661.4,660.95,2.2680283]
[1751975627997,1.6988428,661.39,660.96,2.2680283]
[1751975628592,1.6988428,661.4,660.96,2.2680283]
[1751975628995,1.6988428,661.4,660.97,2.088]
[1751975631198,1.6988428,661.39,660.97,2.088]
[1751975632298,1.6988428,661.39,660.97,4.3560283]
[1751975632798,1.6988428,661.39,660.97,2.088]
[1751975633494,1.6988428,661.39,660.97,4.3560283]
[1751975639202,1.6988428,661.4,660.97,2.088]
[1751975643501,1.6988428,661.41,660.97,2.088]
[1751975648406,1.6988428,661.43,660.97,2.088]
[1751975648706,1.6988428,661.37,660.97,2.088]
[1751975650603,1.6988428,661.35,660.97,2.088]
[1751975651208,1.6988428,661.31,660.97,2.088]
[1751975652409,1.6988428,661.32,660.97,2.088]
[1751975653208,1.6988428,661.38,660.97,2.088]
[1751975656408,1.6988428,661.39,660.97,2.088]
[1751975658313,1.6988428,661.4,660.97,2.088]
[1751975660115,1.6988428,661.37,660.97,2.088]
[1751975660519,1.6988428,661.38,660.97,2.088]
[1751975663018,1.6988428,661.34,660.97,2.088]
[1751975663223,1.6988428,661.35,660.97,2.088]
[1751975670425,1.6988428,661.36,660.97,2.088]
[1751975671825,1.6988428,661.35,660.97,2.088]
[1751975672420,1.6988428,661.36,660.97,2.088]
[1751975672621,1.6988428,661.35,660.97,2.088]
[1751975675027,1.6988428,661.34,660.97,2.088]
[1751975676326,1.6988428,661.35,660.97,2.088]
[1751975676828,0.98965871,661.44,660.97,2.088]
[1751975676829,1.6988428,661.34,660.97,2.088]
[1751975677224,1.6988428,661.35,660.97,2.088]
[1751975677727,1.6988428,661.38,660.97,2.088]
[1751975679927,1.6988428,661.38,660.8,0.26314198]
[1751975680429,1.6988428,661.38,660.78,1.6955576]
[1751975680629,1.6988428,661.38,660.77,1.6955576]
[1751975681033,1.6988428,661.38,660.76,1.6955576]
[1751975681230,1.6988428,661.38,660.77,1.6955576]
[1751975681433,1.6988428,661.38,660.72,0.26319571]
[1751975681434,1.6988428,661.38,660.76,1.6955576]
[1751975682329,1.6988428,661.38,660.77,1.942]
[1751975682831,1.6988428,661.39,660.77,1.942]
[1751975687638,1.6988428,661.38,660.77,1.942]
[1751975687938,1.6988428,661.37,660.77,3.6375576]
[1751975690344,1.6988428,661.36,660.78,1.6955576]
[1751975690539,0.26314198,661.75,660.77,3.6375576]
[1751975690540,1.6988428,661.37,660.77,3.6375576]
[1751975691043,1.6988428,661.37,660.78,1.6955576]
[1751975692345,1.6988428,661.36,660.78,1.6955576]
[1751975692744,1.6988428,661.36,660.79,1.6955576]
[1751975693146,1.6988428,661.35,660.8,1.6955576]
[1751975693746,1.6988428,661.35,660.79,1.6955576]
[1751975694151,1.6988428,661.35,660.8,1.6955576]
[1751975696253,1.6988428,661.34,660.8,1.6955576]
[1751975696853,1.6988428,661.35,660.79,1.6955576]
[1751975697255,1.6988428,661.35,660.8,1.6955576]
[1751975698156,1.6988428,661.34,660.8,1.6955576]
[1751975699157,1.6988428,661.34,660.81,1.6955576]
[1751975700456,1.6988428,661.35,660.79,1.6955576]
[1751975701459,1.6988428,661.35,660.8,1.6955576]
[1751975702355,1.6988428,661.34,660.8,1.6955576]
[1751975703661,1.6988428,661.34,660.81,1.6955576]
[1751975704362,1.6988428,661.33,660.81,1.6955576]
[1751975705359,1.6988428,661.33,660.82,1.6955576]
[1751975706360,1.6988428,661.32,660.82,1.6955576]
[1751975706758,1.6988428,661.31,660.83,1.6955576]
[1751975707458,1.6988428,661.31,660.77,1.942]
[1751975707459,1.6988428,661.31,660.84,1.6955576]
[1751975707962,1.6988428,661.31,660.77,1.942]
[1751975707963,1.6988428,661.31,660.83,1.6955576]
[1751975708564,1.6988428,661.31,660.84,1.6955576]
[1751975709460,1.6988428,661.3,660.84,1.6955576]
[1751975710365,1.6988428,661.29,660.86,1.6955576]
[1751975710865,1.6988428,661.3,660.86,1.6955576]
[1751975711366,1.6988428,661.29,660.86,1.6955576]
[1751975711663,1.6988428,661.29,660.77,1.942]
[1751975711664,1.6988428,661.29,660.87,1.6955576]
[1751975712065,1.6988428,661.3,660.87,1.6955576]
[1751975712368,1.6988428,661.3,660.88,1.6955576]
[1751975713068,1.6988428,661.31,660.86,1.6955576]
[1751975716471,1.6988428,661.32,660.84,1.6955576]
[1751975717166,1.6988428,661.34,660.81,1.6955576]
[1751975717972,1.6988428,661.34,660.82,1.6955576]
[1751975718369,1.6988428,661.33,660.82,1.6955576]
[1751975722970,1.6988428,661.33,660.83,1.6955576]
[1751975724374,1.7010506,661.33,660.83,1.6993765]
[1751975726274,1.7010506,661.32,660.84,1.6993765]
[1751975727279,1.7010506,661.31,660.86,1.6993765]
[1751975728980,0.99123979,661.44,660.77,1.942]
[1751975728981,1.7010506,661.38,660.78,1.6993765]
[1751975729280,1.7010506,661.46,660.86,1.6993765]
[1751975730179,1.7010506,661.48,660.85,1.6993765]
[1751975731579,1.69975759,661.48,660.85,1.69759228]
[1751975732084,1.69975759,661.48,660.84,1.69759228]
[1751975732280,1.69975759,661.49,660.84,1.69759228]
[1751975733184,1.69975759,661.49,660.83,1.69759228]
[1751975733581,1.69975759,661.49,660.84,1.69759228]
[1751975734787,1.69975759,661.46,660.88,1.69759228]
[1751975735291,1.69975759,661.47,660.88,1.69759228]
[1751975736290,1.69975759,661.47,660.87,1.69759228]
[1751975737093,1.69975759,661.47,660.88,1.817]
[1751975737292,1.69975759,661.48,660.88,1.817]
[1751975737587,1.69975759,661.47,660.88,1.817]
[1751975738389,1.69975759,661.48,660.88,1.817]
[1751975738987,1.69975759,661.46,660.88,3.51459228]
[1751975739191,1.69975759,661.47,660.88,3.51459228]
[1751975742091,1.69975759,661.44,660.93,1.69759228]
[1751975742388,1.69975759,661.44,660.92,1.69759228]
[1751975743589,1.69975759,661.44,660.93,1.69759228]
[1751975744289,1.69975759,661.44,660.92,1.69759228]
[1751975744488,1.69975759,661.44,660.88,1.817]
[1751975744489,1.69975759,661.44,660.93,1.69759228]
[1751975745289,1.69975759,661.44,660.92,1.69759228]
[1751975746793,1.69975759,661.43,660.95,1.69759228]
[1751975747090,1.69975759,661.44,660.93,1.69759228]
[1751975747691,1.69975759,661.43,660.95,1.69759228]
[1751975748192,1.69975759,661.43,660.94,1.69759228]
[1751975748895,1.69975759,661.43,660.95,1.69759228]
[1751975749292,1.69975759,661.43,660.88,1.817]
[1751975749293,1.69975759,661.43,660.94,1.69759228]
[1751975749795,1.69975759,661.43,660.95,1.69759228]
[1751975750195,1.69975759,661.43,660.94,1.69759228]
[1751975756000,1.69975759,661.43,660.95,1.69759228]
[1751975756298,1.69975759,661.46,660.9,1.69759228]
[1751975758502,1.69975759,661.46,660.91,1.957]
[1751975762806,1.69975759,661.48,660.91,1.957]
[1751975764507,1.6974955,661.48,660.91,1.957]
[1751975766206,1.6974955,661.46,660.91,1.957]
[1751975767009,1.6974955,661.47,660.91,1.957]
[1751975772813,1.6974955,661.45,660.93,1.69531473]
[1751975774015,1.6974955,661.45,660.92,1.69531473]
[1751975774417,1.6974955,661.45,660.93,1.69531473]
[1751975774717,1.6974955,661.44,660.93,1.69531473]
[1751975775214,1.6974955,661.44,660.91,1.957]
[1751975775215,1.6974955,661.44,660.94,1.69531473]
[1751975776913,1.6974955,661.43,660.95,1.69531473]
[1751975777811,1.6974955,661.43,660.96,1.69531473]
[1751975778215,1.6974955,661.42,660.96,1.69531473]
[1751975779619,1.6974955,661.41,660.95,1.69531473]
[1751975780619,1.6974955,661.44,660.91,1.957]
[1751975783215,1.6974955,661.43,660.91,1.957]
[1751975783620,1.6974955,661.44,660.91,1.957]
[1751975783916,1.6974955,661.43,660.91,1.957]
[1751975784320,1.6974955,661.43,660.91,3.65231473]
[1751975785117,1.6974955,661.42,660.91,3.65231473]
[1751975786125,1.6974955,661.42,660.92,1.69531473]
[1751975787320,1.6974955,661.42,660.91,3.65231473]
[1751975788226,1.6974955,661.42,660.92,1.69531473]
[1751975789128,1.6974955,661.43,660.91,1.957]
[1751975789328,1.6974955,661.42,660.91,3.65231473]
[1751975790331,1.6974955,661.39,660.91,1.957]
[1751975790524,1.6974955,661.38,660.91,1.957]
[1751975794330,1.6974955,661.37,660.91,1.957]
[1751975794626,1.6974955,661.38,660.91,1.957]
[1751975797128,1.6974955,661.37,660.91,1.957]
[1751975798932,1.6974955,661.34,660.95,1.69531473]
[1751975799532,1.6974955,661.34,660.94,1.69531473]
[1751975800936,1.6974955,661.34,660.95,1.69531473]
[1751975801130,1.6974955,661.34,660.94,1.69531473]
[1751975802936,1.6974955,661.35,660.93,1.69531473]
[1751975803438,1.6974955,661.35,660.94,1.69531473]
[1751975804940,1.6974955,661.36,660.91,3.65231473]
[1751975805142,1.6974955,661.36,660.92,1.69531473]
[1751975805340,1.6974955,661.36,660.91,3.65231473]
[1751975805635,1.6974955,661.36,660.92,1.69531473]
[1751975808241,1.6974955,661.41,660.85,1.69531473]
[1751975808537,1.6974955,661.41,660.84,1.69531473]
[1751975810941,1.6974955,661.4,660.83,1.69531473]
[1751975811244,1.6974955,661.4,660.84,1.373]
[1751975811443,1.6974955,661.39,660.84,1.373]
[1751975812041,1.6974955,661.36,660.84,1.373]
[1751975814547,1.6974955,661.37,660.84,1.373]
[1751975814746,1.6974955,661.36,660.84,1.373]
[1751975816450,1.6974955,661.37,660.84,1.373]
[1751975818248,1.6974955,661.34,660.84,1.373]
[1751975818445,1.6974955,661.33,660.84,1.373]
[1751975819047,1.6974955,661.33,660.84,3.06831473]
[1751975820745,1.6974955,661.31,660.87,1.69531473]
[1751975821356,1.6974955,661.31,660.88,1.69531473]
[1751975822457,1.6974955,661.3,660.88,1.69531473]
[1751975823459,1.6974955,661.31,660.87,1.69531473]
[1751975824958,1.6974955,661.31,660.86,1.69531473]
[1751975825258,1.6974955,661.32,660.86,1.69531473]
[1751975825758,1.6974955,661.32,660.84,1.373]
[1751975825759,1.6974955,661.32,660.85,1.69531473]
[1751975828861,1.6974955,661.32,660.86,1.69531473]
[1751975832967,1.6974955,661.32,660.85,1.69531473]
[1751975833468,1.6974955,661.32,660.84,1.373]
[1751975833469,1.6974955,661.32,660.86,1.69531473]
[1751975834766,1.6974955,661.32,660.85,1.69531473]
[1751975835566,1.6974955,661.32,660.86,1.69531473]
[1751975839472,1.6974955,661.32,660.85,1.69531473]
[1751975841571,1.6974955,661.32,660.86,1.69531473]
[1751975842770,1.6974955,661.31,660.86,1.69531473]
[1751975844172,1.6974955,661.31,660.87,1.69531473]
[1751975844673,1.6974955,661.3,660.88,1.69531473]
[1751975849174,1.6974955,661.29,660.9,1.69531473]
[1751975852372,1.6974955,661.28,660.9,1.69531473]
[1751975854072,1.6974955,661.3,660.88,1.69531473]
[1751975855278,1.6974955,661.3,660.87,1.69531473]
[1751975855477,1.6974955,661.3,660.88,1.69531473]
[1751975856076,1.6974955,661.3,660.87,1.69531473]
[1751975857074,1.6974955,661.32,660.85,1.69531473]
[1751975858174,1.6974955,661.32,660.86,1.96]
[1751975858379,1.6974955,661.31,660.86,1.96]
[1751975861277,1.6974955,661.33,660.86,1.96]
[1751975861881,1.6974955,661.34,660.86,1.96]
[1751975864100,1.6974955,661.33,660.86,1.96]
[1751975866981,1.6974955,661.32,660.86,1.96]
[1751975870284,1.6974955,661.31,660.86,1.96]
[1751975871085,1.6974955,661.3,660.87,1.69531473]
[1751975871281,1.6974955,661.29,660.87,1.69531473]
[1751975871786,1.6974955,661.26,660.91,1.69531473]
[1751975872287,1.6974955,661.27,660.91,1.69531473]
[1751975872886,1.6974955,661.26,660.91,1.69531473]
[1751975873284,1.6974955,661.27,660.91,1.69531473]
[1751975873784,1.6974955,661.29,660.88,1.69531473]
[1751975876393,1.6974955,661.28,660.88,1.69531473]
[1751975877488,1.6974955,661.29,660.88,1.69531473]
[1751975877688,1.6974955,661.3,660.86,3.65531473]
[1751975878188,1.6974955,661.3,660.86,1.96]
[1751975883601,1.6974955,661.3,660.86,3.65531473]
[1751975883899,1.6974955,661.29,660.87,1.69531473]
[1751975886398,1.6974955,661.33,660.86,1.96]
[1751975888001,1.6974955,661.32,660.86,1.96]
[1751975891608,1.6974955,661.33,660.86,1.96]
[1751975892305,1.6974955,661.32,660.86,1.96]
[1751975893310,1.6974955,661.33,660.86,1.96]
[1751975896215,1.6974955,661.29,660.87,1.69531473]
[1751975896408,1.6974955,661.3,660.86,1.69531473]
[1751975898714,1.6974955,661.3,660.87,2.154]
[1751975899817,1.6974955,661.28,660.88,1.69531473]
[1751975901620,1.6974955,661.28,660.89,1.69531473]
[1751975903323,1.6974955,661.26,660.91,1.69531473]
[1751975903920,1.6974955,661.26,660.92,1.69531473]
[1751975906726,0.263137,661.73,660.93,1.69531473]
[1751975906727,1.6974955,661.25,660.93,1.69531473]
[1751975907126,1.6974955,661.25,660.94,1.69531473]
[1751975908730,1.6974955,661.27,660.9,1.69531473]
[1751975911530,1.6974955,661.28,660.89,1.69531473]
[1751975915728,1.6974955,661.3,660.87,2.154]
[1751975916533,0.99211045,661.44,660.87,2.154]
[1751975916735,1.7015474,661.3,660.87,2.154]
[1751975918631,1.7015474,661.29,660.87,3.8536439]
[1751975920631,1.7015474,661.3,660.87,2.154]
[1751975922435,1.7015474,661.31,660.87,2.154]
[1751975922735,1.7015474,661.31,660.85,1.6996439]
[1751975924831,0.99211045,661.46,659.88,5.6515933]
[1751975924832,1.7015474,661.32,660.83,1.6996439]
[1751975925134,1.7015474,661.27,660.84,1.453]
[1751975925331,1.7015474,661.28,660.84,1.453]
[1751975927236,1.7015474,661.29,660.84,1.453]
[1751975927437,1.7015474,661.28,660.84,1.453]
[1751975933248,1.7015474,661.27,660.84,1.453]
[1751975933743,1.7015474,661.28,660.84,1.453]
[1751975934648,1.7015474,661.27,660.84,1.453]
[1751975934848,1.7015474,661.26,660.84,1.453]
[1751975937350,1.7015474,661.27,660.84,1.453]
[1751975939045,1.7015474,661.26,660.84,1.453]
[1751975943054,0.99160069,661.39,660.84,1.453]
[1751975943254,1.6998466,661.26,660.84,1.453]
[1751975943854,1.6998466,661.25,660.84,1.453]
[1751975945254,1.6998466,661.26,660.84,1.453]
[1751975947466,0.99160069,661.37,660.84,1.453]
[1751975947467,1.6998466,661.28,660.84,1.453]
[1751975952571,1.6998466,661.32,660.84,1.453]
[1751975952867,1.6998466,661.35,660.84,1.453]
[1751975955974,1.6998466,661.36,660.84,1.453]
[1751975957071,1.6998466,661.35,660.84,1.453]
[1751975962482,1.6998466,661.32,660.84,1.453]
[1751975966188,1.6998466,661.32,660.83,1.698214]
[1751975966688,1.6998466,661.32,660.84,1.698214]
[1751975967384,1.6998466,661.31,660.84,1.698214]
[1751975967690,1.6998466,661.3,660.86,1.698214]
[1751975968489,1.6998466,661.29,660.87,1.698214]
[1751975968789,1.6998466,661.29,660.88,1.698214]
[1751975970186,1.6998466,661.29,660.89,1.575]
[1751975971587,1.6998466,661.28,660.89,1.575]
[1751975973590,1.6998466,661.29,660.89,1.575]
[1751975973791,1.6998466,661.28,660.89,1.575]
[1751975977288,1.7000696,661.28,660.89,3.2734553]
[1751975980392,1.7000696,661.27,660.9,1.6984553]
[1751975982496,1.7000696,661.28,660.89,3.2734553]
[1751975985199,0.99214093,661.39,660.89,1.575]
[1751975985200,1.7000696,661.29,660.89,1.575]
[1751975986100,1.7000696,661.28,660.89,1.575]
[1751975988301,1.7000696,661.28,660.89,3.2734553]
[1751975989004,1.7000696,661.31,660.89,1.575]
[1751975991303,1.7000696,661.3,660.89,1.575]
[1751975991501,1.7000696,661.31,660.89,1.575]
[1751975992601,1.7000696,661.3,660.89,1.575]
[1751975998705,1.7000696,661.28,660.89,1.575]
[1751975999009,1.7000696,661.28,660.89,3.2734553]
[1751975999311,1.7000696,661.28,660.89,1.6984553]
[1751976001109,1.7000696,661.28,660.88,1.6984553]
[1751976001510,1.7000696,661.28,660.89,1.6984553]
[1751976001806,0.99553711,661.39,661.03,1.6984553]
[1751976002010,1.7000696,661.42,661.03,1.6984553]
[1751976003217,1.7000696,661.42,661.04,1.934]
[1751976003817,1.7000696,661.49,661.04,1.934]
[1751976004015,1.7000696,661.5,661.04,1.934]
[1751976004614,1.7000696,661.58,661.04,1.934]
[1751976004918,1.7000696,661.53,661.09,1.6984553]
[1751976005114,0.99561173,661.52,661.08,1.6984553]
[1751976005314,0.99561173,661.52,661.04,1.934]
[1751976005315,0.99561173,661.51,661.09,1.6984553]
[1751976005515,1.7000696,661.53,661.09,1.6984553]
[1751976005929,1.7000696,661.59,661.15,1.6984553]
[1751976006218,1.7000696,661.67,661.04,3.6324553]
[1751976006414,1.7000696,661.69,661.04,1.934]
[1751976006613,1.7000696,661.7,661.04,1.934]
[1751976006819,1.7000696,661.8,661.13,1.6984553]
[1751976007220,1.7000696,661.8,661.14,1.6984553]
[1751976007515,1.7000696,661.83,661.11,1.6984553]
[1751976008420,1.7000696,661.81,661.14,1.6984553]
[1751976009521,1.7000696,661.83,661.13,1.6984553]
[1751976010418,1.7000696,661.83,661.12,1.6984553]
[1751976011520,1.7000696,661.84,661.11,1.6984553]
[1751976011723,1.7000696,661.86,661.09,1.6984553]
[1751976011923,1.7000696,661.86,661.08,1.6984553]
[1751976012425,1.7000696,661.87,661.07,1.6984553]
[1751976012626,1.7000696,661.88,661.08,1.6984553]
[1751976013625,1.7000696,661.89,661.07,1.6984553]
[1751976014425,1.7000696,661.9,661.07,1.6984553]
[1751976015429,1.7000696,661.91,661.06,1.6984553]
[1751976015835,1.7000696,661.9,661.06,1.6984553]
[1751976016026,1.7000696,661.9,661.07,1.6984553]
[1751976016630,1.7000696,661.91,661.07,1.6984553]
[1751976017030,1.7000696,661.9,661.07,1.6984553]
[1751976017232,1.7000696,661.91,661.07,1.6984553]
[1751976018431,1.7000696,661.92,661.06,1.6984553]
[1751976018833,0.26306539,661.95,661.04,1.934]
[1751976021335,0.26306539,661.95,660.99,1.6984553]
[1751976023834,0.26306539,661.95,661.0,1.525]
[1751976024132,0.26306539,661.95,661.0,3.2234553]
[1751976025038,0.26306539,661.95,661.02,1.6984553]
[1751976028638,0.26306539,661.95,661.09,1.6984553]
[1751976028838,0.26306539,661.95,661.12,1.6984553]
[1751976029338,1.96313499,661.95,661.12,1.6984553]
[1751976029534,0.26306539,661.95,661.12,1.6984553]
[1751976029737,1.96313499,661.95,661.13,1.6984553]
[1751976029934,1.7000696,661.92,661.1,1.6984553]
[1751976030335,1.7000696,661.92,661.11,1.6984553]
[1751976030937,1.7000696,661.89,661.16,1.6984553]
[1751976031338,0.26306539,661.95,661.14,1.6984553]
[1751976031339,1.7000696,661.9,661.14,1.6984553]
[1751976031540,1.7000696,661.93,661.09,1.6984553]
[1751976031840,0.26306539,661.95,661.05,1.6984553]
[1751976032237,1.7000696,661.93,661.03,1.6984553]
[1751976032440,1.7000696,661.92,661.05,1.6984553]
[1751976032838,1.6904536,661.91,661.06,1.6871483]
[1751976033139,0.26306539,661.95,661.1,1.6871483]
[1751976033140,1.6904536,661.88,661.1,1.6871483]
[1751976033438,1.6904536,661.88,661.0,1.525]
[1751976033439,1.6904536,661.88,661.11,1.6871483]
[1751976033639,1.6904536,661.87,661.1,1.6871483]
[1751976033838,1.6904536,661.86,661.11,1.6871483]
[1751976034538,1.6904536,661.86,661.12,1.6871483]
[1751976036144,1.6904536,661.86,661.11,1.6871483]
[1751976036541,0.26306539,661.95,661.09,1.6871483]
[1751976036542,1.6904536,661.87,661.09,1.6871483]
[1751976037642,1.6904536,661.87,661.1,1.6871483]
[1751976038443,1.6904536,661.86,661.1,1.6871483]
[1751976041239,1.6904536,661.85,661.12,1.6871483]
[1751976041539,1.6904536,661.85,661.0,3.7930283]
[1751976041540,1.6904536,661.85,661.11,1.6871483]
[1751976041740,1.6904536,661.85,661.12,1.6871483]
[1751976043346,1.6904536,661.84,661.12,1.6871483]
[1751976043741,1.6904536,661.87,661.08,1.6871483]
[1751976044046,1.6904536,661.87,661.07,1.6871483]
[1751976045147,1.6904536,661.87,661.08,1.6871483]
[1751976046342,1.6904536,661.86,661.08,1.6871483]
[1751976048450,1.6904536,661.85,661.08,1.6871483]
[1751976049047,1.6904536,661.87,661.06,1.6871483]
[1751976050147,1.6904536,661.86,661.06,1.6871483]
[1751976051848,1.6904536,661.86,661.07,1.6871483]
[1751976052253,1.6904536,661.85,661.07,1.6871483]
[1751976052448,0.26306539,661.95,661.06,1.6871483]
[1751976052449,1.6904536,661.86,661.06,1.6871483]
[1751976053048,1.6904536,661.84,661.08,1.6871483]
[1751976053649,1.6904536,661.86,661.05,1.6871483]
[1751976054256,1.6904536,661.85,661.05,1.6871483]
[1751976054452,1.6904536,661.85,661.06,1.6871483]
[1751976055152,1.6904536,661.84,661.06,1.6871483]
[1751976056066,1.6904536,661.85,661.05,1.6871483]
[1751976056258,1.6904536,661.84,661.05,1.6871483]
[1751976057254,1.6904536,661.83,661.06,1.6871483]
[1751976058257,1.6904536,661.82,661.07,1.6871483]
[1751976058453,1.6904536,661.83,661.07,1.6871483]
[1751976058958,1.6904536,661.82,661.08,1.6871483]
[1751976059258,1.6904536,661.81,661.09,1.6871483]
[1751976060157,0.26306539,661.95,661.0,1.525]
[1751976060354,1.6955334,661.81,661.09,1.6918524]
[1751976060560,1.6955334,661.81,661.1,1.6918524]
[1751976061253,1.6955334,661.8,661.1,1.6918524]
[1751976061458,1.6955334,661.79,661.11,1.6918524]
[1751976062355,1.6955334,661.78,661.13,1.6918524]
[1751976063461,1.6955334,661.76,661.15,1.6918524]
[1751976063762,1.6955334,661.74,661.18,1.6918524]
[1751976064362,1.6985078,661.72,661.2,1.6948176]
[1751976065157,1.6985078,661.71,661.21,1.6948176]
[1751976065559,1.6985078,661.7,661.23,1.6948176]
[1751976065959,1.6985078,661.67,661.27,1.6948176]
[1751976066362,1.6985078,661.66,661.28,1.6948176]
[1751976067862,1.6985078,661.67,661.27,1.6948176]
[1751976068059,1.6985078,661.67,661.04,3.4020425]
[1751976068060,1.6985078,661.66,661.28,1.6948176]
[1751976069260,1.6985078,661.71,661.21,1.6948176]
[1751976070460,1.6985078,661.68,661.17,1.6948176]
[1751976071462,1.6985078,661.67,661.17,1.6948176]
[1751976072367,1.6985078,661.67,661.16,1.6948176]
[1751976072562,1.6985078,661.67,661.17,1.6948176]
[1751976072764,1.6985078,661.67,661.16,1.6948176]
[1751976075266,1.6985078,661.67,661.15,1.6948176]
[1751976078972,1.6985078,661.67,661.16,1.6948176]
[1751976083176,1.6985078,661.69,661.12,1.6948176]